Cogmind - Beta 14 @@@ ROGUE MODE // 2025.02.24 @ 04:41:13 Player: Zeta Lockhart Result: Self-destructed Performance ------------- Evolutions (1) 500 Regions Visited (3) 600 Robots Destroyed (21) 105 Value Destroyed (380) 380 Prototype IDs (0) 0 Alien Tech Used (0) 0 Bonus (0) 0 TOTAL SCORE: 1585 Bonus ------- None Cogmind --------- Core Integrity 105/400 Matter 300/300 Energy 100/100 System Corruption 0% Temperature Warm (128) Movement Rolling (140) Ox4 Location -9/Mines Parts ------- > --- POWER (1) -------- (None) > --- PROPULSION (2) --- Wheel > --- UTILITY (3) ------ Heat Sink High-capacity Storage Unit > --- WEAPON (3) ------- Beam Cannon > --- INVENTORY (20) --- Ion Engine Light Ion Engine Light Ion Engine Heavy Ion Engine Light Nuclear Core Wheel Wheel Wheel Compact Wheel Compact Wheel Compact Wheel Compact Wheel Cooling System High-capacity Battery (250) Medium Matter Pod (92) EM Pulse Gun EM Pulse Gun Improved EM Shotgun Improved EM Shotgun Peak State ------------ > --- POWER ------------ Light Nuclear Core > --- PROPULSION ------- Compact Wheel > --- UTILITY ---------- Heat Sink High-capacity Storage Unit > --- WEAPON ----------- Small Laser Particle Gun Assault Rifle > --- INVENTORY -------- Light Ion Engine Light Ion Engine Wheel Wheel Wheel Wheel Wheel Compact Wheel Compact Wheel Compact Wheel Cooling System EM Pulse Gun EM Pulse Gun Improved EM Shotgun Improved EM Shotgun [Rating: 12] Favorites ----------- Power Light Ion Engine Engine Light Ion Engine Power Core Light Nuclear Core Propulsion Compact Wheel Leg Aluminum Leg Wheel Compact Wheel Utility High-capacity Storage Unit Device Heat Sink Storage High-capacity Storage Unit Weapon Small Laser Energy Gun Small Laser Energy Cannon Beam Cannon Ballistic Gun Light Assault Rifle Build | -11 -10 -9 -9 ------- Run | Yrd Mat Mat Min Slots Evolved 2 | . . 2 . Power . | . . . . Propulsion . | . . . . Utility 1 | . . 1 . Weapon 1 | . . 1 . Parts Attached 22 | 8 2 9 3 Power 4 | 1 1 2 . Engine 3 | 1 1 1 . Core 1 | . . 1 . Reactor . | . . . . Propulsion 5 | 3 . 1 1 Treads . | . . . . Leg 2 | 2 . . . Wheel 3 | 1 . 1 1 Hover . | . . . . Flight . | . . . . Utility 6 | 2 1 2 1 Device 3 | 1 . 1 1 Storage 3 | 1 1 1 . Processor . | . . . . Hackware . | . . . . Protection . | . . . . Artifact . | . . . . Weapon 7 | 2 . 4 1 Energy Gun 4 | 1 . 3 . Energy Cannon 1 | . . . 1 Ballistic Gun 2 | 1 . 1 . Ballistic Cannon . | . . . . Launcher . | . . . . Special Weapon . | . . . . Impact Weapon . | . . . . Slashing Weapon . | . . . . Piercing Weapon . | . . . . Special Melee Weapon . | . . . . Unidentified Prototypes . | . . . . Parts Lost 12 | . . 6 6 Power 2 | . . 1 1 Propulsion 2 | . . 1 1 Utility 2 | . . 1 1 Weapon 6 | . . 3 3 Highest Loss Streak 4 | . . 3 4 To Critical Strikes . | . . . . Average Slot Usage (%) 76 | . 85 73 73 Engine 6 | . 14 2 11 Core 5 | . . 8 . Wheel 11 | . 14 11 11 Device 10 | . 14 10 8 Storage 11 | . 14 11 11 Energy Gun 19 | . 14 20 24 Energy Cannon 1 | . . . 7 Ballistic Gun 9 | . 14 10 . Peak Build Rating 12 | 6 6 12 11 Average Rating 8 | 5 6 10 9 On Entrance 5 | . 6 6 10 Naked Turns . | . . . . Heaviest Build 90 | 11 86 90 51 Greatest Support 20 | 20 16 16 20 Greatest Overweight (x) 5 | . 5 5 5 Average Overweight (x) 1 | . . 3 4 Largest Inventory Capacity 25 | 8 25 25 20 Average Capacity 15 | 7 8 20 20 Most Carried 20 | 8 8 19 20 Average Carried 11 | 6 8 13 18 Final Capacity 25 | 8 25 20 20 Final Carried 19 | 8 8 17 19 Class Distribution -------------------- 45% | Mutant 38% | Scavenger-Gunner 14% | Gunner Dominant Class ---------------- Mutant | -10/Materials Scavenger-Gunner | -9/Materials Gunner | -9/Mines Resources | -11 -10 -9 -9 ----------- Run | Yrd Mat Mat Min Matter Collected 617 | 305 18 148 146 Remotely . | . . . . Salvage Created 668 | 125 51 333 159 Parts 41 | 9 6 20 6 Haulers Intercepted . | . . . . Recyclers Shooed 3 | 1 1 1 . Parts Field Recycled . | . . . . Retrieved Matter . | . . . . Parts Self-Destructed . | . . . . Prevented . | . . . . Kills | -11 -10 -9 -9 ------- Run | Yrd Mat Mat Min Combat Hostiles Destroyed 14 | . 3 8 3 Guns 13 | . 3 8 2 Cannons 1 | . . . 1 Classes Destroyed 7 | 2 2 2 1 Worker 1 | . . 1 . Tunneler 3 | 3 . . . Recycler 3 | 1 . 1 1 Watcher 1 | . 1 . . Swarmer 6 | . 3 3 . Grunt 7 | . . 5 2 Assembled 1 | . . . 1 Best Kill Streak 3 | 1 3 3 3 Combat Bots Only 3 | . 3 3 2 Max Kills in Single Turn 1 | 1 1 1 1 Gunslinging . | . . . . Exploded . | . . . . Melee . | . . . . Uniques/NPCs Destroyed . | . . . . Combat | -11 -10 -9 -9 -------- Run | Yrd Mat Mat Min Hostile Shots Fired 140 | . 35 72 33 Missed 24 | . 9 13 2 Damage Taken 1250 | . 196 599 455 Core 391 | . 96 133 162 Absorbed by Shields . | . . . . Core Remaining (%) 80 | 100 61 . . Volleys Fired 86 | 25 20 30 11 Largest 3 | 2 2 3 3 Hottest 165 | 60 60 145 165 Shots Fired 195 | 50 40 79 26 Gun 189 | 50 40 79 20 Cannon 6 | . . . 6 Launcher . | . . . . Special . | . . . . Kinetic 73 | 25 20 28 . Thermal 110 | 25 20 43 22 Explosive . | . . . . Electromagnetic 12 | . . 8 4 Robot Hit Streak 8 | 8 3 8 3 Robot Miss Streak 7 | 3 3 7 4 Penetration Max . | . . . . Secondary Targets 4 | . 1 3 . Max Gunslinging Chain 1 | . 1 1 . Shots Hit Robots 107 | 32 19 45 11 Core Hits 39 | 8 8 17 6 Critical Kills . | . . . . Critical Parts Destroyed . | . . . . Critical Strikes 3 | . . 1 2 Burn 2 | . . 1 1 Corrupt 1 | . . . 1 Melee Attacks . | . . . . Impact . | . . . . Slashing . | . . . . Piercing . | . . . . Sneak Attacks . | . . . . Combat Hostiles . | . . . . Follow-up Attacks . | . . . . Damage Inflicted 1219 | 302 195 539 183 Guns 1146 | 302 192 539 113 Cannons 70 | . . . 70 Explosions . | . . . . Melee . | . . . . Ramming 3 | . 3 . . Kinetic 439 | 129 80 230 . Thermal 686 | 173 112 245 156 Explosive . | . . . . Electromagnetic 91 | . . 64 27 Impact . | . . . . Slashing . | . . . . Piercing . | . . . . Highest Corruption . | . . . . Average Corruption . | . . . . Corruption Purged . | . . . . Corruption Blocked . | . . . . Overload Shots . | . . . . Overflow Damage . | . . . . Projectiles . | . . . . Explosions . | . . . . Melee . | . . . . Knockbacks . | . . . . Impact . | . . . . Kinetic . | . . . . Secondary . | . . . . Self-Inflicted Damage 1 | . 1 . . Shots . | . . . . Rammed 1 | . 1 . . Targets Rammed 1 | . 1 . . Kicked . | . . . . Crushed . | . . . . Highest Temperature 434 | 40 60 342 434 Average Temperature 82 | 22 26 104 165 Received Heat Transfer 493 | . . 225 268 Effects 2 | . . . 2 Shutdowns 1 | . . . 1 Matter Decay 1 | . . . 1 Siege Activations . | . . . . Robots Corrupted . | . . . . Combat Hostiles . | . . . . Parts Fried . | . . . . Impact Corruptions . | . . . . Robots Melted . | . . . . Combat Hostiles . | . . . . Parts Melted 3 | . . 2 1 Heat Transferred 1740 | 400 250 670 420 Parts Sabotaged . | . . . . Parts Stolen . | . . . . Parts Stripped . | . . . . Power Chain Reactions . | . . . . Alert | -11 -10 -9 -9 ------- Run | Yrd Mat Mat Min Peak Influence 157 | 20 157 146 69 Initial 66 | . 13 66 34 Average 78 | 10 88 110 52 Maximum Alert Level . | . . . . Low Security (%) 100 | 100 100 100 100 Level 1 . | . . . . Level 2 . | . . . . Level 3 . | . . . . Level 4 . | . . . . Level 5 . | . . . . High Security . | . . . . Max Security . | . . . . Squads Dispatched 2 | . 1 1 . Investigation . | . . . . Extermination . | . . . . Reinforcement 2 | . 1 1 . Assault . | . . . . Garrison . | . . . . Intercept . | . . . . Searches Triggered . | . . . . Construction Impeded . | . . . . Haulers Reinforced . | . . . . Active Scanning Responses . | . . . . Cargo Convoy Interrupts . | . . . . Stealth | -11 -10 -9 -9 --------- Run | Yrd Mat Mat Min Distress Signals . | . . . . Communications Jammed . | . . . . Distress Signals . | . . . . Times Spotted 30 | . 7 10 13 Peak Tracking Total 11 | . 4 3 11 Tactical Retreats 1 | . . . 1 Traps | -11 -10 -9 -9 ------- Run | Yrd Mat Mat Min Traps Triggered . | . . . . Indirectly . | . . . . Trap Hack Attempts . | . . . . Triggered . | . . . . Disarmed . | . . . . Reprogrammed 2 | . 2 . . Reused . | . . . . Traps Extracted . | . . . . Installed . | . . . . Triggered . | . . . . Machines | -11 -10 -9 -9 ---------- Run | Yrd Mat Mat Min Machines Disabled . | . . . . Max in Single Turn . | . . . . Machines Repaired . | . . . . Machines Dismantled . | . . . . Machines Sabotaged . | . . . . Overloaded Fab Kills . | . . . . Hacking | -11 -10 -9 -9 --------- Run | Yrd Mat Mat Min Machines Accessed 4 | . 3 1 . Terminals 4 | . 3 1 . Fabricators . | . . . . Repair Stations . | . . . . Recycling Units . | . . . . Scanalyzers . | . . . . Garrison Access . | . . . . Total Hacks 9 | . 8 1 . Successful 4 | . 4 . . Failed 5 | . 4 1 . Catastrophic . | . . . . Database Lockouts . | . . . . Manual . | . . . . Terminals 9 | . 8 1 . Fabricators . | . . . . Repair Stations . | . . . . Recycling Units . | . . . . Scanalyzers . | . . . . Garrison Access . | . . . . Terminal Hacks 4 | . 4 . . Scanalyzer Index 1 | . 1 . . Locate Traps 2 | . 2 . . Reprogram Traps 1 | . 1 . . Fabricator Hacks . | . . . . Repair Station Hacks . | . . . . Recycling Unit Hacks . | . . . . Scanalyzer . | . . . . Garrison Access Hacks . | . . . . Unauthorized Hacks . | . . . . Terminals . | . . . . Fabricators . | . . . . Repair Stations . | . . . . Recycling Units . | . . . . Scanalyzers . | . . . . Garrison Access . | . . . . Data Cores Recovered . | . . . . Used . | . . . . Hacking Detections 4 | . 3 1 . Full Trace Events . | . . . . Feedback Events . | . . . . Feedback Blocked . | . . . . Robot Schematics Acquired . | . . . . Robots Built . | . . . . Authchips . | . . . . Time . | . . . . Total Robot Build Rating . | . . . . Part Schematics Acquired . | . . . . Parts Built . | . . . . Authchips . | . . . . Time . | . . . . Total Part Build Rating . | . . . . Parts Repaired . | . . . . Time . | . . . . Parts Recycled . | . . . . Recycled Matter . | . . . . Retrieved Matter . | . . . . Retrieved Components . | . . . . Parts Scanalyzed . | . . . . Part Schematics Acquired . | . . . . Parts Damaged . | . . . . Bothacking | -11 -10 -9 -9 ------------ Run | Yrd Mat Mat Min Used RIF Installer . | . . . . Robots Hacked . | . . . . Non-combat . | . . . . Combat . | . . . . Robot Hacks Applied . | . . . . Relay Couplers Released . | . . . . Fabnet Peak Effective % . | . . . . Robots Rewired . | . . . . Allies Hacked . | . . . . Hacks Repelled . | . . . . Allies | -11 -10 -9 -9 -------- Run | Yrd Mat Mat Min Total Allies . | . . . . Largest Group . | . . . . Highest-Rated Group . | . . . . Highest-Rated Ally . | . . . . Total Orders . | . . . . Ally Attacks . | . . . . Total Damage . | . . . . Kills . | . . . . Allies Corrupted . | . . . . Allies Melted . | . . . . Intel | -11 -10 -9 -9 ------- Run | Yrd Mat Mat Min Robot Analysis Total . | . . . . Derelict Logs Recovered . | . . . . Drone Launches . | . . . . Drone Recoveries . | . . . . Exploration | -11 -10 -9 -9 ------------- Run | Yrd Mat Mat Min Turns Passed 970 | 194 172 469 135 Spaces Moved 456 | 99 111 181 65 Core 10 | 10 . . . Treads . | . . . . Legs 38 | 38 . . . Wheels 408 | 51 111 181 65 Hover . | . . . . Flight . | . . . . Fastest Speed 50 | 50 100 140 110 Average Speed 126 | 102 102 148 144 Slowest Speed 175 | 120 175 175 155 Overloaded Moves . | . . . . Propulsion Burnouts . | . . . . Robots Hopped . | . . . . Cave-ins Triggered . | . . . . Exploration Rate (%) 21 | 4 34 22 25 Regions Visited 3 Branch Regions 1 Pre-discovered Areas . | . . . . Known Exits Taken . | . . . . Unknown Exits Taken 3 | 1 1 1 . Scrap Searched . | . . . . Spaces Dug . | . . . . Terrain Destroyed . | . . . . Melee . | . . . . Projectile . | . . . . AOE . | . . . . Terrain Rammed . | . . . . Walls Destroyed . | . . . . Machines Disabled . | . . . . Actions | -11 -10 -9 -9 --------- Run | Yrd Mat Mat Min Total 690 | 151 135 320 84 Wait 81 | . . 81 . Move 453 | 98 110 180 65 Hop . | . . . . Pick Up 39 | 16 . 18 5 Fast Attach 2 | 2 . . . Attach 17 | 6 . 8 3 Detach . | . . . . Swap 3 | . 2 1 . Drop 8 | 4 2 2 . Fire 86 | 25 20 30 11 Melee . | . . . . Ram 1 | . 1 . . Kick . | . . . . Crush . | . . . . Escape Stasis . | . . . . Rewire . | . . . . Trap . | . . . . Miscellaneous . | . . . . Route ------- -11/Scrapyard -10/Materials -9/Materials -9/Mines History --------- Turn | Location | Event 10 | -11/Scrapyard | Discovered new exit (range 15) 195 | -11/Scrapyard | Entered Materials 327 | -10/Materials | Build established: Mutant 345 | -10/Materials | Discovered new exit (range 8) 367 | -10/Materials | Entered another Materials area 367 | -9/Materials | Evolved 2 slots: Utility x1, Weapon x1 450 | -9/Materials | Lost 3 parts (1u2w) 748 | -9/Materials | Build established: Scavenger-Gunner 757 | -9/Materials | Discovered new exit (range 8) 836 | -9/Materials | Entered Mines 844 | -9/Mines | Lost 3 parts (1p1n1w) 932 | -9/Mines | Assembled infested the area 937 | -9/Mines | Assisted by a Guerilla fighting off Assembled 958 | -9/Mines | Core integrity fell below 50% 971 | -9/Mines | Self-destructed Last Messages --------------- 00918_ Acquired Com. Wheel. 00919_ K-01 Serf collects debris. 00920_ Acquired Lgt. Ion Engine. 00921_ Acquired 51 matter. 00924_ K-01 Serf collects debris. 00932_ ALERT: Infestation in the mines, dispatching Demolisher response squad. 00932_ K-01 Serf collects debris. 00936_ DW-WTQ(h): "I'll hold them off! Go on ahead or try to find another way!" 00937_ A derelict emerges from the shadows: "You need to get out of here! I've been tracking a group of Assembled to figure out where they're coming from, and they're closing on this area, come on!" 00938_ K-01 Serf collects debris. 00946_ DW-WTQ(h) destroyed. 00949_ K-01 Serf collects debris. 00953_ K-01 Serf destroyed. 00961_ Particle Gun destroyed. 00964_ as-40202 destroyed. 00966_ Wheel destroyed. 00966_ Sml. Laser destroyed. 00971_ Lgt. Ion Engine destroyed. Map ----- +----------------------------------------------------+ | ??????????????????????# #??????????? | | ?????????????????????## ##?????????? | | ?????????????????????# ##????????? | | ?????????????????????# ###??????? | | ?????????????????????# ##?????? | | ??????????????????????# % #?????? | | ??????????????????????# #?????? | | ???????????????????????# #??????? | | ???????????????????????# ##??????? | | ??????????????????????## ########?? | | ??????????????????????# #?# ### | | ?????????????????????## ### | | ????????????????????## ### | | ????????????#######?# #?# | | ???????????## ### ### #?# | | ???????????# ## #?# ### | | ???????????# a##??## #### | | ????????????# !=#????# #??# | | ????????????#### *##???# #??# | | ???????????????## #???# #??## | | ??????##????????# #???# #???# | | ??????# ??????# ##??? ???# | | ??????# ????## a ##???? ???? | | ??????# #### #????? ???? | | ??????# aa #????? ???? | | ???????# @ #????? ???? | | ???????# #????? ???? | | ??????# ### ## ##??????? ???? | | ?????# ???## ######????????????? | | ?????## #?????#######?????????????????? | | ??????#???????????????????????????????? | | ??????????????????????????????????????? | | ??????????????????????????????????????? | | ??????????????????????????????????????? | | | | | | | | | | | | | | | | | | | | | | | | | | | | | | | | | +----------------------------------------------------+ Best States ------------- Heat Dissipation 38 Energy Generation 14 Energy Capacity 160 Matter Stores 300 Matter Capacity 300 Sight Range 16 Terrain Scan Density 10 Evasion (%) 50 Item Schematics ----------------- None Robot Schematics ------------------ None Fabricated ------------ Nothing Alien Tech Used ----------------- None Achievements -------------- None Challenges ------------ None Game ------ Seed TimingDeliveryUnit Manual? 0 Play Time 00:12:41 Cumulative 42.2 hours Start 2025.02.24 @ 04:30:14 End 2025.02.24 @ 04:41:13 Sessions 1 Manual Loads 0 Difficulty Rogue Special Mode None Game No. 42 Rogue 42 Adventurer 0 Explorer 0 Win Type - Total 0 Types 0/0/0/0/0/0/0/0/0 Lore% 3 Gallery% 29 Achievement% 24 Wizard Run 0 Options --------- Layout 0 ASCII 0 Keyboard 0 Movement Mouse Keybinds 0 Fullscreen 2 Font 12/Smallcaps Map View 41x27 Zoom Use 100% Tactical HUD 1 Map Filters NONE Filters NONE Steam 1 RUN: 1de76de4-6750-4658-b6e6-e06022362d91